Cogmind - Beta 16.1 @@@ ROGUE MODE // 2026.03.08 @ 18:05:24 Player: MintyFresh56 Result: Destroyed by G-47 Trooper with Particle Gun Performance ------------- Evolutions (2) 1000 Regions Visited (3) 600 Robots Destroyed (37) 185 Value Destroyed (1187) 1187 Prototype IDs (1) 20 Alien Tech Used (0) 0 Bonus (0) 0 TOTAL SCORE: 2992 Bonus ------- None Cogmind --------- Core Integrity 0/550 Matter 300/300 Energy 98/100 System Corruption 0% Temperature Cool (9) Movement Core (800) Ox15 Location -8/Materials Parts ------- > --- POWER (1) -------- (None) > --- PROPULSION (3) --- (None) > --- UTILITY (4) ------ High-capacity Storage Unit Improved Targeting Computer Utility Shielding > --- WEAPON (3) ------- Spread Laser Katana > --- INVENTORY (20) --- Improved Ion Engine High-capacity Matter Pod (200) Structural Scanner Advanced Beam Cannon Welding Torch Peak State ------------ > --- POWER ------------ Improved Ion Engine > --- PROPULSION ------- Light Treads Aluminum Leg Armored Wheel > --- UTILITY ---------- High-capacity Storage Unit Visual Processing Unit Sensor Array Improved Targeting Computer > --- WEAPON ----------- Spread Laser Advanced Beam Cannon Advanced Beam Cannon > --- INVENTORY -------- Light Treads Hover Unit Heat Sink High-capacity Matter Pod Structural Scanner Utility Shielding Advanced Beam Cannon Light Assault Rifle Grenade Launcher Welding Torch [Rating: 21] Favorites ----------- Power Ion Engine Engine Ion Engine Power Core Light Nuclear Core Propulsion Light Treads Treads Light Treads Leg Aluminum Leg Wheel Armored Wheel Hover Unit Hover Unit Flight Unit Flight Unit Utility High-capacity Storage Unit Device Sensor Array Storage High-capacity Storage Unit Processor Visual Processing Unit Protection Utility Shielding Weapon Assault Rifle Energy Gun EM Pulse Gun Energy Cannon Advanced Beam Cannon Ballistic Gun Assault Rifle Launcher Grenade Launcher Slashing Weapon Katana Build | -11 -10 -9 -8 ------- Run | Yrd Mat Mat Mat Slots Evolved 4 | . . 2 2 Power . | . . . . Propulsion 1 | . . 1 . Utility 2 | . . . 2 Weapon 1 | . . 1 . Parts Attached 39 | 7 9 6 17 Power 6 | 2 . 2 2 Engine 4 | 2 . 2 . Core 2 | . . . 2 Reactor . | . . . . Propulsion 14 | 2 4 1 7 Treads 2 | 2 . . . Leg 7 | . . . 7 Wheel 1 | . . 1 . Hover 1 | . 1 . . Flight 3 | . 3 . . Utility 8 | 1 3 . 4 Device 2 | . . . 2 Storage 3 | 1 2 . . Processor 2 | . 1 . 1 Hackware . | . . . . Protection 1 | . . . 1 Artifact . | . . . . Weapon 11 | 2 2 3 4 Energy Gun 5 | 1 . 1 3 Energy Cannon 2 | . . 2 . Ballistic Gun 2 | 1 1 . . Ballistic Cannon . | . . . . Launcher 1 | . 1 . . Special Weapon . | . . . . Impact Weapon . | . . . . Slashing Weapon 1 | . . . 1 Piercing Weapon . | . . . . Special Melee Weapon . | . . . . Unidentified Prototypes 1 | . . 1 . Parts Lost 11 | . . . 11 Power 1 | . . . 1 Propulsion 5 | . . . 5 Utility 1 | . . . 1 Weapon 4 | . . . 4 Highest Loss Streak 6 | . . . 6 To Critical Strikes . | . . . . Average Backups 6 | . 5 8 9 Power . | . . . . Propulsion 1 | . 1 1 1 Utility 2 | . . 4 3 Weapon 1 | . 1 2 2 Tool/Special . | . . . . Unused Backups 9 | . 3 2 4 Power 1 | . . 1 . Propulsion 3 | . 2 . 1 Utility 2 | . . 1 1 Weapon 1 | . . . 1 Tool/Special 2 | . 1 . 1 Average Slot Usage (%) 94 | . 95 96 91 Engine 10 | . 14 11 2 Core 1 | . . . 5 Treads 18 | . 25 22 2 Leg 5 | . . . 19 Wheel 1 | . . 8 1 Device 2 | . . . 8 Storage 14 | . 18 11 9 Processor 9 | . 5 11 14 Energy Gun 10 | . 11 2 13 Energy Cannon 5 | . . 15 7 Ballistic Gun 10 | . 15 11 . Peak Build Rating 21 | 6 8 18 21 Average Rating 11 | 4 7 15 18 On Entrance 8 | . 6 8 18 Avg Prop Armor Cover (%) 16 | . 6 18 14 Naked Turns . | . . . . Heaviest Build 59 | 14 49 58 59 Greatest Support 40 | 40 40 40 33 Greatest Overweight (x) 15 | 3 5 4 15 Average Overweight (x) 1 | . . 3 1 Largest Inventory Capacity 20 | 8 20 20 20 Average Capacity 15 | 7 12 20 20 Most Carried 14 | 1 8 12 14 Average Carried 6 | . 5 9 9 Final Capacity 20 | 8 20 20 20 Final Carried 12 | 1 6 12 5 Class Distribution -------------------- 63% | Mutant 18% | Skirmisher 8% | Scavenger-Skirmisher 7% | Scavenger-Mutant Dominant Class ---------------- Mutant | -10/Materials Skirmisher | -9/Materials Scavenger-Skirmisher | -8/Materials Resources | -11 -10 -9 -8 ----------- Run | Yrd Mat Mat Mat Matter Collected 1346 | 195 470 201 480 Remotely . | . . . . Salvage Created 1075 | . 210 235 630 Parts 68 | . 24 13 31 Haulers Intercepted . | . . . . Recyclers Shooed 1 | . . . 1 Parts Field Recycled . | . . . . Retrieved Matter . | . . . . Parts Self-Destructed . | . . . . Prevented . | . . . . Parts Restored . | . . . . Kills | -11 -10 -9 -8 ------- Run | Yrd Mat Mat Mat Combat Hostiles Destroyed 30 | . 8 6 16 Guns 17 | . 6 1 10 Cannons 7 | . . 3 4 AOE 6 | . 2 2 2 Classes Destroyed 8 | . 4 2 2 Worker 1 | . 1 . . Builder 1 | . . . 1 Tunneler 1 | . 1 . . Watcher 4 | . 3 1 . Swarmer 8 | . 8 . . Grunt 19 | . . 5 14 Duelist 2 | . . . 2 Sentry 1 | . . 1 . Best Kill Streak 5 | . 5 3 5 Combat Bots Only 4 | . 3 3 4 Max Kills in Single Turn 2 | . 2 2 1 Gunslinging 1 | . 1 . . Exploded 2 | . 2 1 1 Melee . | . . . . Uniques/NPCs Destroyed . | . . . . Combat | -11 -10 -9 -8 -------- Run | Yrd Mat Mat Mat Hostile Shots Fired 177 | . 38 35 104 Missed 40 | . 7 10 23 Hits 137 | . 31 25 81 Melee 2 | . . . 2 Projectile 135 | . 31 25 79 Critical Strikes 8 | . . 1 7 Damage Taken 2390 | . 349 366 1675 Core 736 | . 42 134 560 Absorbed by Shields . | . . . . Redirected to Shielding 17 | . . . 17 Core Remaining (%) 83 | 100 83 66 . Volleys Fired 111 | . 28 15 68 Largest 3 | . 2 3 3 Hottest 201 | . 70 201 201 Shots Fired 204 | . 55 42 107 Gun 130 | . 52 20 58 Cannon 62 | . . 18 44 Launcher 12 | . 3 4 5 Special . | . . . . Kinetic 43 | . 24 19 . Thermal 110 | . . 19 91 Explosive 12 | . 3 4 5 Electromagnetic 39 | . 28 . 11 Robot Hit Streak 24 | . 6 6 24 Robot Miss Streak 7 | . 4 7 7 Penetration Max . | . . . . Secondary Targets 1 | . 1 . . Max Gunslinging Chain 1 | . 1 . . Shots Hit Robots 123 | . 23 22 78 Core Hits 91 | . 14 13 64 Critical Kills . | . . . . Critical Parts Destroyed . | . . . . Critical Strikes 2 | . . . 2 Burn 1 | . . . 1 Corrupt 1 | . . . 1 Melee Attacks 5 | . . . 5 Impact . | . . . . Slashing 5 | . . . 5 Piercing . | . . . . Sneak Attacks . | . . . . Combat Hostiles . | . . . . Follow-up Attacks . | . . . . Damage Inflicted 2671 | . 471 484 1716 Guns 1121 | . 333 112 676 Cannons 792 | . . 225 567 Explosions 693 | . 138 147 408 Melee 65 | . . . 65 Ramming . | . . . . Kinetic 287 | . 175 112 . Thermal 1553 | . . 225 1328 Explosive 546 | . 138 147 261 Electromagnetic 220 | . 158 . 62 Impact . | . . . . Slashing 65 | . . . 65 Piercing . | . . . . Highest Corruption . | . . . . Average Corruption . | . . . . Corruption Purged . | . . . . Corruption Blocked . | . . . . Overload Shots . | . . . . Overflow Damage 17 | . . 11 6 Projectiles 17 | . . 11 6 Explosions . | . . . . Melee . | . . . . Knockbacks . | . . . . Impact . | . . . . Kinetic . | . . . . Secondary . | . . . . Self-Inflicted Damage 94 | . 40 . 54 Shots 5 | . 1 . 4 Rammed . | . . . . Targets Rammed . | . . . . Kicked . | . . . . Crushed . | . . . . Highest Temperature 741 | . 27 536 741 Average Temperature 173 | . 12 163 185 Received Heat Transfer 954 | . . 180 774 Effects 25 | . . 8 17 Shutdowns 5 | . . 2 3 Energy Bleed 1 | . . 1 . Interference 6 | . . . 6 Matter Decay 6 | . . 2 4 Damage (major) 3 | . . 3 . Damage (core) 4 | . . . 4 Siege Activations . | . . . . Martial Activations . | . . . . Shielding Activations . | . . . . Robots Disrupted . | . . . . Combat Hostiles . | . . . . Robots Corrupted . | . . . . Combat Hostiles . | . . . . Parts Fried . | . . . . Impact Corruptions . | . . . . Robots Melted . | . . . . Combat Hostiles . | . . . . Parts Melted 4 | . . . 4 Heat Transferred 2791 | . . 407 2384 Parts Sabotaged . | . . . . Parts Stolen . | . . . . Parts Stripped . | . . . . Power Chain Reactions 2 | . . . 2 Alert | -11 -10 -9 -8 ------- Run | Yrd Mat Mat Mat Maximum Alert Level . | . . . . Low Security (%) 100 | 100 100 100 100 Level 1 . | . . . . Level 2 . | . . . . Level 3 . | . . . . Level 4 . | . . . . Level 5 . | . . . . High Security . | . . . . Max Security . | . . . . Peak Influence 180 | . 147 84 180 Initial 9 | . . 3 9 Average 41 | . 32 34 69 Influence Increases 950 | . 284 186 480 Destroy 0b10 Robot/C 600 | . 160 120 320 Destroy 0b10 Robot/NC 35 | . 25 5 5 Destroy Leader 118 | . 26 32 60 Disable Machine 75 | . 45 . 30 Destroy Structure 62 | . 13 14 35 Partial Spotted 15 | . . 15 . Lose Combat Pursuer 45 | . 15 . 30 Influence Decreases 809 | . 276 170 363 Entered New Map 20 | . . 5 15 Time Decay 679 | . 276 165 238 Lost Part 110 | . . . 110 Squads Dispatched 5 | . . 1 4 Investigation 1 | . . . 1 Extermination . | . . . . Reinforcement 4 | . . 1 3 Assault . | . . . . Garrison . | . . . . Intercept . | . . . . Searches Triggered . | . . . . Construction Impeded 2 | . . . 2 Haulers Reinforced . | . . . . Active Scanning Responses . | . . . . Cargo Convoy Interrupts . | . . . . Stealth | -11 -10 -9 -8 --------- Run | Yrd Mat Mat Mat Distress Signals 2 | . 1 . 1 Communications Jammed . | . . . . Distress Signals . | . . . . Times Spotted 46 | . 15 10 21 Peak Tracking Total 5 | . 5 4 5 Tactical Retreats 3 | . 1 . 2 Traps | -11 -10 -9 -8 ------- Run | Yrd Mat Mat Mat Traps Triggered 5 | . 3 1 1 Indirectly . | . . . . Trap Hack Attempts . | . . . . Triggered . | . . . . Disarmed . | . . . . Reprogrammed . | . . . . Reused . | . . . . Traps Extracted . | . . . . Installed . | . . . . Triggered . | . . . . Machines | -11 -10 -9 -8 ---------- Run | Yrd Mat Mat Mat Machines Disabled 5 | . 3 . 2 Max in Single Turn 2 | . 2 . 1 Machines Repaired . | . . . . Machines Dismantled . | . . . . Machines Sabotaged . | . . . . Overloaded Fab Kills . | . . . . Hacking | -11 -10 -9 -8 --------- Run | Yrd Mat Mat Mat Machines Accessed 3 | . 3 . . Terminals 1 | . 1 . . Fabricators . | . . . . Repair Stations 1 | . 1 . . Recycling Units 1 | . 1 . . Scanalyzers . | . . . . Garrison Access . | . . . . Total Hacks 6 | . 6 . . Successful 6 | . 6 . . Failed . | . . . . Catastrophic . | . . . . Database Lockouts . | . . . . Manual 1 | . 1 . . Terminals 1 | . 1 . . Fabricators . | . . . . Repair Stations 1 | . 1 . . Recycling Units 4 | . 4 . . Scanalyzers . | . . . . Garrison Access . | . . . . Terminal Hacks 1 | . 1 . . Record 1 | . 1 . . Fabricator Hacks . | . . . . Repair Station Hacks 1 | . 1 . . Scan Component 1 | . 1 . . Recycling Unit Hacks 4 | . 4 . . Recycle Component 2 | . 2 . . Process 1 | . 1 . . Report Inventory 1 | . 1 . . Scanalyzer . | . . . . Garrison Access Hacks . | . . . . Unauthorized Hacks . | . . . . Terminals . | . . . . Fabricators . | . . . . Repair Stations . | . . . . Recycling Units . | . . . . Scanalyzers . | . . . . Garrison Access . | . . . . Data Cores Recovered . | . . . . Used . | . . . . Hacking Detections 2 | . 2 . . Full Trace Events . | . . . . Feedback Events . | . . . . Feedback Blocked . | . . . . Robot Schematics Acquired . | . . . . Robots Built . | . . . . Authchips . | . . . . Time . | . . . . Total Robot Build Rating . | . . . . Part Schematics Acquired . | . . . . Parts Built . | . . . . Authchips . | . . . . Time . | . . . . Total Part Build Rating . | . . . . Part Studies Acquired . | . . . . Parts Repaired . | . . . . Time . | . . . . Parts Recycled 2 | . 2 . . Recycled Matter 159 | . 159 . . Retrieved Matter . | . . . . Retrieved Components . | . . . . Parts Scanalyzed . | . . . . Part Schematics Acquired . | . . . . Parts Damaged . | . . . . Bothacking | -11 -10 -9 -8 ------------ Run | Yrd Mat Mat Mat Used RIF Installer . | . . . . Robots Hacked . | . . . . Non-combat . | . . . . Combat . | . . . . Robot Hacks Applied . | . . . . Relay Couplers Released . | . . . . Fabnet Peak Effective % . | . . . . Robots Rewired . | . . . . Allies Hacked . | . . . . Hacks Repelled . | . . . . Allies | -11 -10 -9 -8 -------- Run | Yrd Mat Mat Mat Total Allies . | . . . . Largest Group . | . . . . Highest-Rated Group . | . . . . Highest-Rated Ally . | . . . . Total Orders . | . . . . Ally Attacks . | . . . . Total Damage . | . . . . Kills . | . . . . Allies Corrupted . | . . . . Allies Melted . | . . . . Intel | -11 -10 -9 -8 ------- Run | Yrd Mat Mat Mat Active Infowar (turns) 1364 | . 547 418 399 Optics 1364 | . 547 418 399 Sensors 394 | . . . 394 Robot Analysis Total . | . . . . Derelict Logs Recovered . | . . . . Drone Launches . | . . . . Drone Recoveries . | . . . . Exploration | -11 -10 -9 -8 ------------- Run | Yrd Mat Mat Mat Turns Passed 2480 | 127 1284 418 651 Spaces Moved 1086 | 84 619 212 171 Core 49 | 41 7 . 1 Treads 657 | 43 581 33 . Legs 170 | . . . 170 Wheels 179 | . . 179 . Hover 2 | . 2 . . Flight 29 | . 29 . . Fastest Speed 50 | 50 160 150 190 Average Speed 188 | 140 186 164 251 Slowest Speed 800 | 200 300 240 800 Overloaded Moves . | . . . . Propulsion Burnouts . | . . . . Robots Hopped . | . . . . Potential Cave-ins . | . . . . Cave-ins Triggered . | . . . . Exploration Rate (%) 22 | 3 54 20 12 Regions Visited 3 Branch Regions . Pre-discovered Areas . | . . . . Known Exits Taken . | . . . . Unknown Exits Taken 3 | 1 1 1 . Scrap Searched . | . . . . Spaces Dug . | . . . . Terrain Destroyed 85 | . 11 19 55 Melee . | . . . . Projectile 4 | . . . 4 AOE 81 | . 11 19 51 Terrain Rammed . | . . . . Walls Destroyed . | . . . . Machines Disabled . | . . . . Actions | -11 -10 -9 -8 --------- Run | Yrd Mat Mat Mat Total 1322 | 90 693 252 287 Wait 11 | . 9 1 1 Move 1083 | 83 618 211 171 Hop . | . . . . Pick Up 41 | . 15 13 13 Fast Attach 7 | 6 1 . . Attach 14 | . 1 2 11 Detach 1 | . 1 . . Swap 26 | 1 12 5 8 Drop 23 | . 8 5 10 Fire 111 | . 28 15 68 Melee 5 | . . . 5 Ram . | . . . . Kick . | . . . . Crush . | . . . . Escape Stasis . | . . . . Rewire . | . . . . Trap . | . . . . Miscellaneous . | . . . . Route ------- -11/Scrapyard -10/Materials (discovered 2 exits: *Mat / [*Sub]) -9/Materials -8/Materials History --------- Turn | Location | Event 17 | -11/Scrapyard | Discovered new exit (range 15) 128 | -11/Scrapyard | Entered Materials 129 | -10/Materials | Met a group of wandering Federalists 300 | -10/Materials | Build established: Mutant 324 | -10/Materials | Discovered new exit (range 9) 913 | -10/Materials | Discovered new exit (range 11) 1412 | -10/Materials | Entered another Materials area 1412 | -9/Materials | Evolved 2 slots: Propulsion x1, Weapon x1 1751 | -9/Materials | Build established: Skirmisher 1763 | -9/Materials | Discovered new exit (range 8) 1830 | -9/Materials | Entered another Materials area 1830 | -8/Materials | Evolved 2 slots: Utility x2 2213 | -8/Materials | Core integrity fell below 50% 2315 | -8/Materials | Core integrity fell below 20% 2355 | -8/Materials | Lost 4 parts (2n2w) 2481 | -8/Materials | Destroyed by G-47 Trooper with Particle Gun Last Messages --------------- G-47 Trooper destroyed. Particle Gun destroyed. Heat Sink destroyed. Aluminum Leg melted. Imp. Heat Sink melted. G-47 Trooper destroyed. Lgt. Nuclear Core destroyed. Aluminum Leg destroyed. Overheating: Matter decay (-75). Overheating: System interference. Katana temporarily disabled. G-47 Trooper destroyed. R-06 Scavenger collects Aluminum Leg. Acquired 69 matter. R-06 Scavenger collects Lgt. Nuclear Core. Acquired 6 matter. R-06 Scavenger collects Corrupted Lgt. Nuclear Core. Aluminum Leg destroyed. Imp. Aluminum Leg destroyed. Map ----- +----------------------------------------------------+ | ????????????????????????????????????????????????? | | ????????????????????????????????????????????????? | | ????????????????????????????????????????????????? | | ????????????????????????????????????????????????? | | ????????????????????????????????????????????????? | | ????????????????????????????????????????????????? | | ????????????????????????????????????????????????? | | ????????????????????????????????????????????????? | | ????????????????????????????????????????????????? | | ??????????????????????? ????????????????????????? | | ??????????????????????? ????????????????????????? | | ??????????????????????? ????????????????????????? | | ??????????????????????? ????????????????????????? | | ??????????????????????? ????????????????????????? | | ??????????????????????? ????????????????????????? | | ??????????????????????? ????????????????????????? | | ??????????????????????# #???????????????????????? | | ??????????????????????# #???????????????????????? | | ??????????????????????# #???????????????????????? | | ??????????????????????# ##??????????????????????? | | ??????????????????????# #####???????????????????? | | ?????##########???????# # #???????????????????? | | ?????# #????## # # #????????????????????? | | ?????# #???% # # #????????????????????? | | ?????# #?#######%##### #?????????????????? | | ?????# #?# r u @[=ga #?????????????????? | | ?????# ###t#############?????????????????? | | ?????# ###*# #??????????????????????? | | ?????# [+ # #####??????????????????????? | | ?????# ! ### # ##??????????????????????????? | | ?????# =*[ ### ###???????????????????????????? | | ?????######/###/=![ #???????????????????????????? | | ?????????# % =!% # #?????????????????????????? | | ?????##### = ??????????????????????? | | ???# # #???????????????????? | | ???######## ### # ##???????????????????? | | ?????######+#### ##? #????????????????????? | | ?????# # #??? ##????????????????????? | | ?????# """ # #????###?????????????????????? | | ?????# """ # #????????????????????????????? | | ?????# """ # #????????????????????????????? | | ?????# "" # #????????????????????????????? | | ?????# T" # ###########??????????????????? | | ?????# "" # # #??????????????????? | | ?????# # # T #??????????????????? | | ?????#+#####+### # *= ] #??????????????????? | | ?????# #==[!* #??????????????????? | | ?????# %+ """ """ #??????????????????? | | ?????# # """ """ #??????????????????? | | ?#######+####+## # "" """ #??????????????????? | +----------------------------------------------------+ Best States ------------- Heat Dissipation 41 Energy Generation 14 Energy Capacity 265 Matter Stores 332 Matter Capacity 500 Sight Range 18 Robot Scan Range 14 Terrain Scan Density 10 Utility Shielding 33 Evasion (%) 50 Targeting Accuracy 6 Recoil Reduction 2 Item Schematics ----------------- None Robot Schematics ------------------ None Fabricated ------------ Nothing Repaired ---------- Nothing Studied --------- None Alien Tech Used ----------------- None Achievements -------------- DATA ERROR: Steam Global Achievement% Let's See Who's Tougher Organ Harvest Spot Them First There's More Where That Came From Universal Adapter Well Done Challenges ------------ None Game ------ Seed LinearDisruptorActivator Manual? 0 Play Time 00:34:15 Cumulative 1.0 hours Start 2026.03.08 @ 17:30:36 End 2026.03.08 @ 18:05:24 Sessions 1 Manual Loads 0 Difficulty Rogue Special Mode None Game No. 6 Rogue 6 Adventurer 0 Explorer 0 Win Type - Total 0 Types 0/0/0/0/0/0/0/0/0/0 Lore% 1 Gallery% 5 Achievement% 4 Wizard Run 0 Options --------- Layout 1 ASCII 0 Keyboard 0 Movement Arrows Keybinds 0 Fullscreen 1 Font 24/Smallcaps Map View 50x35 Zoom Use 2% Tactical HUD 0 Map Filters NONE Filters NONE Steam 1 RUN: de40b280-2122-4c2c-9fd5-22cbb7c1733d